bitfinex/quotes_BTCUSD_20250225
["timestamp","ask_amount","ask_price","bid_price","bid_amount"]
[1740477306618,0.08943444,88880.0,88845.0,0.5]
[1740477306619,0.15,88877.0,88846.0,0.31220113]
[1740477306849,0.00196918,88876.0,88846.0,0.31220113]
[1740477307084,0.00196918,88876.0,88841.0,0.16248]
[1740477307338,0.00196918,88876.0,88838.0,0.31220113]
[1740477307339,0.2278,88874.0,88838.0,0.31220113]
[1740477307582,0.08943444,88868.0,88827.0,0.5]
[1740477307752,0.33450013,88867.0,88827.0,0.5]
[1740477308058,0.33253041,88867.0,88827.0,0.5]
[1740477308234,0.29726293,88866.0,88827.0,0.5]
[1740477308401,0.0825,88864.0,88817.0,0.08943444]
[1740477308602,0.2787,88860.0,88817.0,0.08943444]
[1740477308836,0.15,88858.0,88811.0,0.31220113]
[1740477309154,0.01454085,88853.0,88798.0,0.31220113]
[1740477309481,0.01454085,88853.0,88806.0,0.00015]
[1740477309482,0.2284,88846.0,88806.0,0.00015]
[1740477309621,0.21543723,88845.0,88806.0,0.00015]
[1740477309807,0.00197015,88844.0,88806.0,0.00015]
[1740477310011,0.02938371,88843.0,88806.0,0.00015]
[1740477310256,0.00197015,88842.0,88820.0,0.08943444]
[1740477310573,0.00196998,88844.0,88820.0,0.08943444]
[1740477310978,0.0458,88845.0,88820.0,0.08943444]
[1740477310979,0.0458,88845.0,88830.0,0.08943444]
[1740477311113,0.0458,88845.0,88839.0,0.08943444]
[1740477311446,0.5,88846.0,88841.0,0.5]
[1740477311858,0.32811775,88846.0,88841.0,0.5]
[1740477312057,0.32811775,88846.0,88842.0,0.01454085]
[1740477312261,0.49999975,88846.0,88842.0,0.01454085]
[1740477313626,0.49999975,88846.0,88841.0,0.01148]
[1740477313627,0.15,88845.0,88841.0,0.01148]
[1740477314008,0.15,88845.0,88833.0,0.31220113]
[1740477314975,0.01766132,88843.0,88833.0,0.31220113]
[1740477315219,0.08442743,88843.0,88833.0,0.31220113]
[1740477315558,0.2751,88842.0,88822.0,0.31220113]
[1740477316077,0.2751,88842.0,88811.0,0.31220113]
[1740477316489,0.2751,88842.0,88833.0,0.0008487]
[1740477316687,0.15,88840.0,88810.0,0.0008499]
[1740477316906,0.0476,88837.0,88810.0,0.0008499]
[1740477317106,0.0019703,88836.0,88810.0,0.0008499]
[1740477317457,0.01766714,88831.0,88810.0,0.0008499]
[1740477317691,0.0476,88837.0,88810.0,0.0008499]
[1740477318016,0.0476,88837.0,88811.0,0.5]
[1740477318219,0.0476,88837.0,88812.0,0.05010499]
[1740477318426,0.05910592,88837.0,88812.0,0.05010499]
[1740477318623,0.00196994,88836.0,88810.0,0.0123299]
[1740477318824,0.15196994,88836.0,88810.0,0.0123299]
[1740477319247,0.15196994,88836.0,88810.0,0.0008499]
[1740477319461,0.1238,88834.0,88810.0,0.0008499]
[1740477319663,0.15196994,88836.0,88806.0,0.00015]
[1740477319664,0.1238,88831.0,88806.0,0.00015]
[1740477319868,0.0806,88814.0,88765.0,0.30932113]
[1740477320065,0.0486,88810.0,88765.0,0.30932113]
[1740477320275,0.00197104,88809.0,88765.0,0.30932113]
[1740477320922,0.00197104,88809.0,88772.0,0.5]
[1740477321118,0.0486,88810.0,88773.0,0.08943444]
[1740477321273,0.0486,88810.0,88779.0,0.05930186]
[1740477321487,0.0486,88810.0,88782.0,0.08943444]
[1740477321887,0.0486,88810.0,88790.0,0.5]
[1740477322452,0.0486,88810.0,88791.0,0.01144]
[1740477323235,0.01767068,88806.0,88791.0,0.01144]
[1740477323930,0.01767068,88806.0,88790.0,0.80920113]
[1740477324520,0.00197047,88826.0,88790.0,0.84059223]
[1740477325644,0.00197042,88825.0,88790.0,0.84059223]
[1740477325802,0.00197042,88827.0,88790.0,0.84059223]
[1740477326201,0.01767008,88836.0,88790.0,0.84059223]
[1740477326202,0.00197042,88835.0,88800.0,0.5]
[1740477326489,0.00197042,88835.0,88801.0,0.30920113]
[1740477326629,0.08943444,88850.0,88801.0,0.30920113]
[1740477326630,0.01090749,88834.0,88802.0,0.08092011]
[1740477327146,0.01090749,88834.0,88802.0,0.01092011]
[1740477327568,0.15,88832.0,88802.0,0.01092011]
[1740477327743,0.00197011,88831.0,88802.0,0.01092011]
[1740477328303,0.00197011,88831.0,88801.0,0.31005043]
[1740477329848,0.01766927,88824.0,88801.0,0.31005043]
[1740477330052,0.00197033,88823.0,88801.0,0.31005043]
[1740477330601,0.15,88832.0,88805.0,0.5]
[1740477330957,0.15197008,88832.0,88801.0,0.31005043]
[1740477331158,0.02864776,88831.0,88801.0,0.31005043]
[1740477331392,0.00197025,88830.0,88801.0,0.31005043]
[1740477331764,0.03061801,88831.0,88801.0,0.31005043]
[1740477332300,0.15,88823.0,88801.0,0.31005043]
[1740477332930,0.00197025,88822.0,88801.0,0.31005043]
[1740477333124,0.06519702,88821.0,88801.0,0.31005043]
[1740477333371,0.0019704,88820.0,88801.0,0.31005043]
[1740477333721,0.15,88823.0,88801.0,0.31005043]
[1740477334165,0.15,88823.0,88802.0,0.01454085]
[1740477334371,0.01766859,88818.0,88812.0,0.5]
[1740477334581,0.01766859,88818.0,88812.0,0.80920113]
[1740477334789,0.01766859,88818.0,88812.0,0.30920113]
[1740477336975,0.01766859,88818.0,88801.0,0.0008493]
[1740477337210,0.0800704,88817.0,88801.0,0.0008493]
[1740477337810,0.0494,88816.0,88801.0,0.0008493]
[1740477338101,0.00197063,88815.0,88801.0,0.0008493]
[1740477338308,0.02971392,88814.0,88801.0,0.0008493]
[1740477338533,0.0019707,88813.0,88801.0,0.0008493]
[1740477339128,0.00197063,88815.0,88801.0,0.0008493]
[1740477339963,0.1994,88816.0,88801.0,0.0008493]
[1740477340499,0.15,88814.0,88801.0,0.0008493]
[1740477341316,0.15197052,88814.0,88801.0,0.0008493]
[1740477341755,0.15,88814.0,88801.0,0.0008493]
[1740477345799,0.15,88814.0,88793.0,0.30920113]
[1740477346624,0.5,88815.0,88793.0,0.30920113]
[1740477346625,0.35170074,88815.0,88793.0,0.30920113]
[1740477346969,0.49999974,88815.0,88793.0,0.30920113]
[1740477347170,0.49999974,88815.0,88794.0,0.03986356]
[1740477347758,0.49999974,88815.0,88795.0,0.5]
[1740477348577,0.15,88814.0,88795.0,0.5]
[1740477348915,0.15197038,88814.0,88783.0,0.5]
[1740477349141,0.07794701,88813.0,88784.0,0.30920113]
[1740477349347,0.00197071,88812.0,88773.0,0.30920113]
[1740477349547,0.00197071,88812.0,88774.0,0.01144]
[1740477349763,0.00197071,88812.0,88773.0,0.30920113]
[1740477350168,0.01767199,88804.0,88773.0,0.30920113]
[1740477350756,0.01767199,88804.0,88779.0,0.0130762]
[1740477351666,0.01767199,88804.0,88786.0,0.5]
[1740477351820,0.01767199,88804.0,88787.0,0.30920113]
[1740477352038,0.01767199,88804.0,88796.0,0.5]
[1740477352528,0.15,88803.0,88796.0,0.5]
[1740477352730,0.51767199,88804.0,88796.0,0.5]
[1740477353144,0.08943444,88803.0,88784.0,0.0008496]
[1740477353339,0.06071064,88802.0,88797.0,0.0130762]
[1740477353553,0.15,88803.0,88797.0,0.0130762]
[1740477354738,0.15,88803.0,88796.0,5e-05]
[1740477355388,0.00197085,88802.0,88796.0,5e-05]
[1740477355717,0.00197085,88802.0,88797.0,5e-05]
[1740477356127,0.0796,88801.0,88797.0,5e-05]
[1740477356331,0.0796,88801.0,88796.0,5e-05]
[1740477356332,0.09189541,88800.0,88796.0,5e-05]
[1740477356503,0.15,88798.0,88796.0,5e-05]
[1740477356755,0.03627812,88797.0,88796.0,5e-05]
[1740477357363,0.00197135,88797.0,88784.0,0.0008496]
[1740477357622,0.15,88796.0,88784.0,0.0008496]
[1740477357829,0.00197133,88795.0,88784.0,0.0008496]
[1740477358031,0.15,88796.0,88784.0,0.0008496]
[1740477358240,0.15,88790.0,88784.0,0.0008496]
[1740477358416,0.00197157,88789.0,88784.0,0.0008496]
[1740477358622,0.00197148,88789.0,88784.0,0.0008496]
[1740477359640,0.1246,88788.0,88778.0,0.0035842]
[1740477359851,0.15,88783.0,88778.0,0.0035842]
[1740477360045,0.00197185,88782.0,88778.0,0.0035842]
[1740477360282,0.00160623,88782.0,88778.0,0.0035842]
[1740477360638,0.00197168,88782.0,88778.0,0.0035842]
[1740477361048,0.1965,88783.0,88778.0,0.0035842]
[1740477361222,0.19847152,88783.0,88778.0,0.0035842]
[1740477361702,0.1965,88783.0,88778.0,0.0035842]
[1740477361875,0.0465,88783.0,88778.0,0.0035842]
[1740477362032,0.0756,88795.0,88778.0,0.0035842]
[1740477362235,0.5,88793.0,88778.0,0.0036342]
[1740477362445,0.15197092,88792.0,88778.0,0.0036342]
[1740477362662,0.0488,88791.0,88778.0,0.0036342]
[1740477362878,0.00197152,88790.0,88778.0,0.0036342]
[1740477363080,0.00197152,88790.0,88778.0,0.0036842]
[1740477363507,0.0488,88791.0,88778.0,0.0037342]
[1740477363922,0.0488,88791.0,88778.0,0.0037842]
[1740477364143,0.5,88793.0,88779.0,0.5]
[1740477364351,0.5,88793.0,88778.0,0.0038342]
[1740477364352,0.00197085,88792.0,88778.0,0.0038342]
[1740477364555,0.1269,88791.0,88778.0,0.0046837]
[1740477364787,0.15,88790.0,88778.0,0.0046837]
[1740477364972,0.15197169,88790.0,88778.0,0.0046837]
[1740477365179,0.15,88788.0,88778.0,0.0046837]
[1740477365384,0.00197151,88787.0,88778.0,0.0046837]
[1740477365758,0.00197144,88786.0,88778.0,0.0046837]
[1740477365961,0.15,88788.0,88778.0,0.0046837]
[1740477366142,0.08943444,88792.0,88778.0,0.0046837]
[1740477366143,0.15,88785.0,88778.0,0.0046837]
[1740477366340,0.123,88780.0,88766.0,0.0005]
[1740477366547,0.18307775,88779.0,88766.0,0.0005]
[1740477367349,0.18307775,88779.0,88755.0,0.00043159]
[1740477367740,0.08943444,88770.0,88755.0,0.00043159]
[1740477367940,0.12,88766.0,88755.0,0.00043159]
[1740477368146,0.14228868,88766.0,88755.0,0.00043159]
[1740477368321,0.14426099,88766.0,88755.0,0.00043159]
[1740477368460,0.19896359,88766.0,88755.0,0.00043159]
[1740477368887,0.28896359,88766.0,88755.0,0.00043159]
[1740477369101,0.17619807,88766.0,88755.0,0.00043159]
[1740477369302,0.30047661,88766.0,88755.0,0.00043159]
[1740477369622,0.12,88761.0,88755.0,0.00043159]
[1740477369824,0.15477261,88761.0,88755.0,0.00043159]
[1740477370103,0.17667486,88761.0,88755.0,0.00043159]
[1740477370311,0.31041926,88761.0,88755.0,0.00043159]
[1740477370437,0.15,88761.0,88755.0,0.00043159]
[1740477371012,0.15197215,88761.0,88755.0,0.00043159]
[1740477371283,0.21197215,88761.0,88755.0,0.00043159]
[1740477371535,0.05633219,88757.0,88735.0,0.002]
[1740477371708,0.01454085,88754.0,88735.0,0.002]
[1740477371930,0.15,88755.0,88735.0,0.002]
[1740477371931,0.05601262,88752.0,88735.0,0.002]
[1740477372128,0.05645835,88750.0,88735.0,0.002]
[1740477372270,0.05689683,88744.0,88735.0,0.002]
[1740477372483,0.05669343,88742.0,88735.0,0.002]
[1740477372688,0.20661468,88740.0,88735.0,0.002]
[1740477372888,0.05613404,88738.0,88735.0,0.002]
[1740477373091,0.38403404,88738.0,88735.0,0.00205]
[1740477373539,0.3279,88738.0,88735.0,0.00205]
[1740477373783,0.38435241,88738.0,88735.0,0.0021]
[1740477373917,0.3279,88738.0,88735.0,0.0021]
[1740477374125,0.3279,88738.0,88735.0,0.00215]
[1740477374325,0.02933277,88743.0,88735.0,0.00215]
[1740477374326,0.5,88742.0,88735.0,0.00215]
[1740477374532,0.3279,88741.0,88735.0,0.0022]
[1740477374732,0.0563914,88739.0,88735.0,0.0022]
[1740477374952,0.08687528,88740.0,88735.0,0.00225]
[1740477375192,0.0565541,88738.0,88735.0,0.00225]
[1740477375460,0.05660718,88736.0,88691.0,0.55862603]
[1740477375676,0.63834085,88737.0,88691.0,0.55862603]
[1740477375677,0.0897,88721.0,88691.0,0.55862603]
[1740477375881,0.08943444,88722.0,88691.0,0.55862603]
[1740477375882,0.05681121,88717.0,88691.0,0.55862603]
[1740477375996,0.15,88713.0,88691.0,0.55862603]
[1740477376200,0.05623057,88710.0,88691.0,0.55862603]
[1740477377292,0.05613181,88708.0,88677.0,0.0005]
[1740477377507,0.05685533,88691.0,88677.0,0.0005]
[1740477377699,0.20685533,88691.0,88677.0,0.0005]
[1740477377914,0.02462484,88690.0,88677.0,0.0005]
[1740477378271,0.65,88691.0,88677.0,0.0005]
[1740477378885,0.20634184,88690.0,88677.0,0.0005]
[1740477379110,0.14402521,88690.0,88677.0,0.0005]
[1740477379530,0.05634184,88690.0,88677.0,0.0005]
[1740477379870,0.5,88691.0,88677.0,0.0005]
[1740477382816,0.05634184,88690.0,88677.0,0.00055]
[1740477383018,0.20642555,88690.0,88677.0,0.00055]
[1740477383220,0.20634184,88690.0,88677.0,0.0006]
[1740477383471,0.15,88690.0,88677.0,0.00065]
[1740477383684,0.5,88691.0,88677.0,0.00065]
[1740477383860,0.05634184,88690.0,88677.0,0.0007]
[1740477384069,0.05634184,88690.0,88677.0,0.00075]
[1740477384243,0.20634184,88690.0,88677.0,0.00075]
[1740477385056,0.05634184,88690.0,88677.0,0.00075]
[1740477385734,0.49999915,88691.0,88677.0,0.00075]
[1740477386193,0.05673849,88690.0,88677.0,0.00075]
[1740477386891,0.05647157,88686.0,88677.0,0.00075]
[1740477387093,0.20647157,88686.0,88677.0,0.00075]
[1740477387306,0.01454085,88683.0,88677.0,0.00075]
[1740477387452,0.05651528,88684.0,88677.0,0.00075]
[1740477387667,0.00827518,88682.0,88677.0,0.00075]
[1740477387865,0.05636663,88681.0,88677.0,0.00075]
[1740477388095,0.0565304,88681.0,88677.0,0.00075]
[1740477388515,0.00827518,88682.0,88676.0,0.0005998]
[1740477388716,0.01196,88703.0,88676.0,0.0005998]
[1740477388919,0.09876534,88746.0,88677.0,0.0008508]
[1740477388920,0.0560667,88711.0,88677.0,0.0008508]
[1740477389152,0.00164974,88703.0,88677.0,0.0008508]
[1740477389964,0.05644008,88702.0,88677.0,0.0008508]
[1740477390398,0.05606979,88700.0,88677.0,0.0008508]
[1740477390888,0.06599471,88700.0,88677.0,0.0008508]
[1740477391114,0.05606979,88700.0,88677.0,0.0008508]
[1740477391555,0.05631066,88701.0,88677.0,0.0008508]
[1740477391781,0.20644008,88702.0,88677.0,0.0008508]
[1740477392005,0.05631066,88701.0,88677.0,0.0008508]
[1740477392471,0.5,88703.0,88678.0,0.0797]
[1740477392942,0.5,88703.0,88679.0,0.06]
[1740477393406,0.5,88703.0,88678.0,0.0797]
[1740477393407,0.5,88703.0,88681.0,0.06]
[1740477393869,0.00016398,88702.0,88678.0,0.0797]
[1740477394085,0.15,88702.0,88678.0,0.07958716]
[1740477395864,0.15,88702.0,88678.0,0.07358716]
[1740477398346,0.15,88702.0,88678.0,0.07349323]
[1740477398571,0.20616885,88688.0,88677.0,0.0008508]
[1740477398802,0.05678342,88686.0,88677.0,0.0008508]
[1740477399028,0.01454085,88683.0,88677.0,0.0008508]
[1740477400169,0.05670389,88682.0,88677.0,0.0008508]
[1740477400822,0.05674508,88686.0,88677.0,0.0008508]
[1740477401287,0.01336551,88685.0,88677.0,0.0008508]
[1740477401507,0.05652993,88684.0,88677.0,0.0008508]
[1740477401755,0.05652993,88684.0,88664.0,0.05977577]
[1740477401985,0.17503556,88681.0,88650.0,0.016]
[1740477402296,0.02258,88678.0,88650.0,0.016]
[1740477402535,0.1189,88663.0,88650.0,0.016]
[1740477402776,0.20618787,88662.0,88630.0,1.06131961]
[1740477403029,0.05683042,88660.0,88623.0,0.0777]
[1740477403257,0.05683042,88660.0,88631.0,0.00240199]
[1740477403489,0.05631448,88658.0,88623.0,0.0777]
[1740477403715,0.05631448,88658.0,88626.0,0.00240199]
[1740477403944,0.05664144,88656.0,88626.0,0.00240199]
[1740477404459,0.02976214,88655.0,88626.0,0.00240199]
[1740477404719,0.268431,88663.0,88631.0,0.06]
[1740477405002,0.268431,88663.0,88633.0,0.06]
[1740477405238,0.268431,88663.0,88632.0,0.00241753]
[1740477405239,0.268431,88663.0,88640.0,0.06]
[1740477405468,0.01188,88673.0,88636.0,0.06]
[1740477405710,0.01188,88687.0,88649.0,0.0828]
[1740477405958,0.08943444,88703.0,88649.0,0.0828]
[1740477405959,0.05622111,88683.0,88649.0,0.0828]
[1740477406204,0.007,88656.0,88650.0,0.00239081]
[1740477406687,0.238569,88656.0,88650.0,0.00239081]
[1740477406939,0.231569,88656.0,88650.0,0.00239081]
[1740477407190,0.231569,88656.0,88655.0,0.06]
[1740477407433,0.5,88656.0,88635.0,0.08943444]
[1740477407661,0.65,88656.0,88655.0,0.00232427]
[1740477407886,0.15,88655.0,88636.0,0.00794344]
[1740477408190,0.5,88656.0,88650.0,0.003]
[1740477408499,0.15,88655.0,88650.0,0.003]
[1740477409418,0.15,88655.0,88621.0,0.0008498]
[1740477409647,0.15,88655.0,88635.0,0.004]
[1740477410114,0.15,88655.0,88621.0,0.0008498]
[1740477410328,0.15,88655.0,88626.0,0.0624075]
[1740477410546,0.151,88655.0,88650.0,0.007]
[1740477410989,0.15,88655.0,88627.0,0.1258]
[1740477411439,0.151,88655.0,88635.0,0.006]
[1740477411884,0.151,88655.0,88636.0,0.01454085]
[1740477412137,0.001,88655.0,88638.0,0.01454085]
[1740477412413,0.151,88655.0,88637.0,0.12562832]
[1740477412628,0.151,88655.0,88637.0,0.1233]
[1740477412848,0.151,88655.0,88638.0,0.00231706]
[1740477413100,0.151,88655.0,88637.0,0.1233]
[1740477413343,0.15,88655.0,88638.0,0.01454085]
[1740477413559,0.15,88655.0,88638.0,0.01612016]
[1740477413775,0.15,88655.0,88640.0,0.01454085]
[1740477413993,0.15,88655.0,88639.0,0.00231706]
[1740477413994,0.00026878,88654.0,88641.0,0.081]
[1740477414215,0.15,88655.0,88641.0,0.081]
[1740477414948,0.15,88655.0,88642.0,0.0023162]
[1740477415184,0.23943444,88655.0,88642.0,0.0023162]
[1740477415441,0.23943444,88655.0,88640.0,0.00396771]
[1740477415442,0.2060821,88643.0,88640.0,0.00396771]
[1740477416148,0.2060821,88643.0,88635.0,0.0008508]
[1740477416345,0.0560821,88643.0,88635.0,0.0008508]
[1740477416851,0.0560821,88643.0,88641.0,0.004]
[1740477417340,0.0560821,88643.0,88635.0,0.0008508]
[1740477417590,0.0570821,88643.0,88635.0,0.0008508]
[1740477417838,0.15,88642.0,88635.0,0.0008508]
[1740477418559,0.05626405,88641.0,88635.0,0.0008508]
[1740477419625,0.15,88642.0,88635.0,0.0008508]
[1740477419848,0.15,88642.0,88635.0,0.000757]
[1740477420055,0.152,88642.0,88635.0,0.000757]
[1740477420276,0.05626405,88641.0,88635.0,0.000757]
[1740477420477,0.15,88642.0,88635.0,0.000757]
[1740477420904,0.153,88642.0,88635.0,0.000757]
[1740477421076,0.003,88642.0,88635.0,0.000757]
[1740477421299,0.5,88643.0,88635.0,0.000757]
[1740477421726,0.002,88642.0,88635.0,0.000757]
[1740477422356,0.05626405,88641.0,88635.0,0.000757]
[1740477422573,0.152,88642.0,88635.0,0.000757]
[1740477422980,0.15,88642.0,88635.0,0.000757]
[1740477423359,0.15,88641.0,88635.0,0.002757]
[1740477423741,0.2064288,88640.0,88635.0,0.000757]
[1740477423945,0.05614563,88640.0,88635.0,0.000757]
[1740477424144,0.05646484,88639.0,88635.0,0.002757]
[1740477424546,0.05646484,88639.0,88635.0,0.000757]
[1740477425522,0.003,88640.0,88635.0,0.000757]
[1740477426077,0.15,88642.0,88635.0,0.000757]
[1740477426277,0.05613745,88641.0,88635.0,0.000757]
[1740477426503,0.05675713,88638.0,88635.0,0.000757]
[1740477426985,0.05646484,88639.0,88635.0,0.000757]
[1740477427422,0.15,88642.0,88635.0,0.000757]
[1740477429049,0.5,88643.0,88635.0,0.000757]
[1740477429423,0.5,88643.0,88636.0,0.1281]
[1740477430045,0.15,88642.0,88636.0,0.1281]
[1740477431194,0.45522733,88643.0,88636.0,0.1281]
[1740477431596,0.51119533,88643.0,88636.0,0.1281]
[1740477433628,0.15,88642.0,88636.0,0.1281]
[1740477433807,0.15,88642.0,88635.0,0.000757]
[1740477434011,0.00021053,88641.0,88635.0,0.000757]
[1740477434231,0.15,88642.0,88635.0,0.000757]
[1740477435939,0.15,88642.0,88636.0,0.125]
[1740477437814,0.15,88642.0,88636.0,0.115]
[1740477438730,0.15,88642.0,88636.0,0.1265757]
[1740477438956,0.15,88642.0,88636.0,0.115]
[1740477442029,0.51289153,88643.0,88636.0,0.115]
[1740477442492,0.15,88642.0,88636.0,0.115]
[1740477442631,0.15,88642.0,88636.0,0.4385]
[1740477445597,0.01289157,88643.0,88636.0,0.4385]
[1740477445995,0.01289157,88643.0,88636.0,0.5324257]
[1740477446400,0.01289157,88643.0,88636.0,0.4385]
[1740477447494,0.01289157,88643.0,88636.0,0.3585]
[1740477447700,0.01289157,88643.0,88637.0,0.00157925]
[1740477447887,0.01289157,88643.0,88638.0,0.3235]
[1740477447888,0.5,88641.0,88638.0,0.3235]
[1740477448236,0.5,88641.0,88639.0,0.01454085]
[1740477448460,0.5,88641.0,88640.0,0.3235]
[1740477449070,0.15,88640.0,88636.0,0.035]
[1740477449943,0.15,88640.0,88639.0,5e-05]
[1740477450770,0.5,88641.0,88639.0,0.32355]
[1740477451169,0.50022186,88641.0,88639.0,0.32355]
[1740477451392,0.5,88641.0,88639.0,0.32355]
[1740477452070,0.26030348,88641.0,88639.0,0.32355]
[1740477452279,0.26030348,88641.0,88639.0,0.3236]
[1740477452462,0.48999948,88641.0,88639.0,0.3236]
[1740477452899,0.51116932,88641.0,88639.0,0.3236]
[1740477454572,0.51116932,88641.0,88639.0,0.3226]
[1740477456247,0.51116932,88641.0,88639.0,0.36306051]
[1740477456454,0.15,88640.0,88639.0,0.3226]
[1740477457158,0.1502049,88640.0,88639.0,5e-05]
[1740477457541,0.15,88640.0,88639.0,5e-05]
[1740477458632,0.15,88640.0,88639.0,0.08285]
[1740477458832,0.14990619,88640.0,88639.0,0.08285]
[1740477461880,0.14990619,88640.0,88639.0,0.4054]
[1740477462646,0.14990619,88640.0,88639.0,0.96530136]
[1740477463051,0.14990619,88640.0,88639.0,0.9054]
[1740477463251,0.1500882,88640.0,88639.0,0.4054]
[1740477463457,0.14990619,88640.0,88639.0,0.4054]
[1740477463661,0.14990619,88640.0,88639.0,0.3226]
[1740477463867,0.23934063,88640.0,88639.0,5e-05]
[1740477464082,0.23952264,88640.0,88639.0,5e-05]
[1740477464338,0.23934063,88640.0,88639.0,5e-05]
[1740477465485,0.2734276,88640.0,88639.0,5e-05]
[1740477465691,0.2734276,88640.0,88639.0,0.0008981]
[1740477466190,0.18399316,88640.0,88639.0,0.0008981]
[1740477466442,0.18381115,88640.0,88639.0,0.0008981]
[1740477466642,0.18399316,88640.0,88639.0,0.0008981]
[1740477467207,0.51189316,88640.0,88639.0,0.0008981]
[1740477468235,0.51171115,88640.0,88639.0,0.0008981]
[1740477468477,0.48233619,88640.0,88639.0,0.0008981]
[1740477468645,0.47733619,88640.0,88639.0,0.0008981]
[1740477468848,0.47280619,88640.0,88639.0,0.0008981]
[1740477469229,0.3279,88640.0,88639.0,0.0008981]
[1740477469429,0.51286552,88641.0,88639.0,0.0008981]
[1740477471146,0.15,88640.0,88639.0,0.0008981]
[1740477475587,0.01286604,88641.0,88639.0,0.0008981]
[1740477477913,0.5,88640.0,88639.0,0.00247737]
[1740477478167,0.65,88640.0,88639.0,0.0008981]
[1740477478707,0.6516962,88640.0,88639.0,0.0008981]
[1740477479691,0.6516962,88640.0,88639.0,0.01572353]
[1740477479867,0.6516962,88640.0,88639.0,0.01543895]
[1740477482725,0.6516962,88640.0,88639.0,0.07543895]
[1740477483220,0.5016962,88640.0,88639.0,0.13543895]
[1740477483396,0.5016962,88640.0,88639.0,1.22910627]
[1740477483574,0.5016962,88640.0,88639.0,1.21456542]
[1740477484338,0.5016962,88640.0,88639.0,1.22910627]
[1740477484670,0.6516962,88640.0,88639.0,1.16910627]
[1740477486167,0.6516962,88640.0,88639.0,1.07298895]
[1740477487449,0.6516962,88640.0,88639.0,0.3234481]
[1740477487450,0.43849253,88640.0,88639.0,0.3234481]
[1740477487607,0.4386515,88640.0,88639.0,0.3234481]
[1740477487822,0.65169553,88640.0,88639.0,0.3234481]
[1740477488662,0.65169553,88640.0,88639.0,0.0008981]
[1740477489525,0.40190506,88640.0,88639.0,0.0008981]
[1740477489932,0.65190506,88640.0,88639.0,0.0008981]
[1740477490776,0.69860506,88640.0,88639.0,0.0008981]
[1740477492818,0.69839553,88640.0,88639.0,0.0008981]
[1740477493326,0.65169553,88640.0,88639.0,0.0008981]
[1740477493545,0.50169553,88640.0,88639.0,0.0008981]
[1740477495909,0.65169553,88640.0,88639.0,0.0008981]
[1740477504558,0.65188492,88640.0,88639.0,0.0008981]
[1740477505947,0.65169553,88640.0,88639.0,0.0008981]
[1740477506529,0.50169553,88640.0,88639.0,0.09253895]
[1740477506705,0.50169553,88640.0,88639.0,0.0779981]
[1740477507114,0.65169553,88640.0,88639.0,0.0779981]
[1740477507895,0.65169553,88640.0,88639.0,0.07713399]
[1740477508115,0.65169553,88640.0,88639.0,0.09167484]
[1740477508674,0.65169553,88640.0,88639.0,0.09072021]
[1740477509232,0.65169553,88640.0,88639.0,0.08976603]
[1740477509682,0.65169553,88640.0,88639.0,0.13736603]
[1740477509902,0.65169553,88640.0,88639.0,0.45991603]
[1740477510132,0.65169553,88640.0,88639.0,0.52997107]
[1740477510356,0.65064641,88640.0,88639.0,1.13277107]
[1740477510610,0.65169541,88640.0,88639.0,1.13277107]
[1740477510837,0.50169541,88640.0,88639.0,1.13277107]
[1740477511514,0.65169541,88640.0,88639.0,1.13277107]
[1740477511987,0.65169541,88640.0,88639.0,1.13361917]
[1740477515501,0.65169541,88640.0,88639.0,1.19361917]
[1740477515708,0.46487677,88640.0,88639.0,1.19361917]
[1740477515901,0.0016962,88641.0,88639.0,1.19361917]
[1740477515902,0.0017024,88683.0,88678.0,0.5]
[1740477516082,0.08943444,88682.0,88679.0,0.32412843]
[1740477516312,0.08943444,88682.0,88679.0,0.32255]
[1740477516632,0.08943444,88682.0,88680.0,0.00157851]
[1740477516812,0.08943444,88682.0,88678.0,0.5]
[1740477516813,0.08943444,88682.0,88681.0,0.37312683]
[1740477517016,0.02406761,88683.0,88681.0,0.97592683]
[1740477517239,0.02406761,88683.0,88682.0,0.86535]
[1740477517573,0.01706761,88683.0,88682.0,0.93989085]
[1740477517917,0.01706761,88683.0,88682.0,0.99989085]
[1740477518126,0.01706761,88683.0,88682.0,1.06994589]
[1740477519329,0.01706761,88683.0,88682.0,1.15284589]
[1740477519574,0.01706761,88683.0,88682.0,1.15289589]
[1740477519914,0.5,88687.0,88686.0,0.12]
[1740477520114,0.4437,88687.0,88686.0,0.14241895]
[1740477520337,0.4437,88687.0,88686.0,0.25048792]
[1740477520569,0.5,88687.0,88686.0,0.24890982]
[1740477520775,0.5,88687.0,88686.0,0.24790982]
[1740477520950,0.10039453,88700.0,88699.0,0.619]
[1740477521279,0.0017016,88700.0,88699.0,1.18782085]
[1740477521432,0.0017016,88700.0,88699.0,0.73839768]
[1740477522384,0.0017016,88700.0,88699.0,1.23839768]
[1740477522683,0.15,88740.0,88739.0,0.5]
[1740477523091,0.08943444,88745.0,88739.0,0.5]
[1740477523394,0.08943444,88745.0,88741.0,0.059]
[1740477524318,0.5,88760.0,88751.0,0.5]
[1740477524456,0.15,88759.0,88751.0,0.5]
[1740477524858,0.15,88759.0,88751.0,0.3235]
[1740477525440,0.0016962,88771.0,88751.0,0.3235]
[1740477525701,0.0826,88755.0,88751.0,0.3235]
[1740477525935,0.2326,88755.0,88751.0,0.32355]
[1740477526538,0.2326,88755.0,88751.0,0.355905]
[1740477526856,0.0826,88755.0,88751.0,0.362905]
[1740477527497,0.0826,88755.0,88751.0,0.362955]
[1740477527828,0.5,88759.0,88752.0,0.00157728]
[1740477528032,0.5,88759.0,88758.0,0.5]
[1740477528187,0.5,88759.0,88758.0,0.57571397]
[1740477529003,0.65,88759.0,88758.0,0.5]
[1740477529660,0.15,88758.0,88753.0,0.3235]
[1740477531359,0.15,88758.0,88753.0,0.3305]
[1740477531920,0.15,88758.0,88753.0,0.007]
[1740477532324,0.15,88758.0,88751.0,0.0002]
[1740477532539,0.15,88758.0,88751.0,0.08272773]
[1740477532722,0.15,88758.0,88753.0,0.007]
[1740477532917,0.15,88758.0,88751.0,0.08272773]
[1740477533320,0.37516466,88759.0,88753.0,0.007]